[Event "45th FIDE Olympiad 2024"]
[Site "Budapest"]
[Date "2024.09.19"]
[Round "8.219"]
[White "Kanz, Ahmad Safy"]
[Black "Andriamasoandro, Miora"]
[Result "1-0"]
[WhiteElo "1977"]
[BlackElo "2116"]
[PlyCount "242"]
[EventDate "2024.09.05"]
[EventType "team-tourn"]
[EventCountry "HUN"]
[WhiteTeam "Afghanistan"]
[BlackTeam "Madagascar"]
[WhiteTeamCountry "AFG"]
[BlackTeamCountry "MAD"]
[TimeControl "40/5400+30:1800+30"]

1. c4 Nf6 2. Nc3 g6 3. e4 d6 4. d4 Bg7 5. Nge2 O-O 6. Ng3 e5 7. d5 a5 8. h4 Na6 9. h5 c6 10. Be2 cxd5 11. cxd5 Nc5 12. Be3 Bd7 13. Qd2 b5 14. Bxc5 dxc5 15. Bxb5 Ne8 16. Bxd7 Qxd7 17. b3 Nd6 18. Rc1 c4 19. Na4 Qb5 20. Nc3 Qb4 21. Nb1 Rfc8 22. hxg6 hxg6 23. Rc3 cxb3 24. Rxb3 Rc1+ 25. Ke2 Qc4+ 26. Qd3 Rc2+ 27. Nd2 Qc8 28. f3 Rxa2 29. Rc3 Qd8 30. Ngf1 Qg5 31. Ne3 Rb8 32. Rb1 Rd8 33. Rc2 Ra4 34. Qa6 Bh6 35. Ndf1 f5 36. Rb6 Bf8 37. Rcc6 Ra2+ 38. Kd1 Qe7 39. Nc2 fxe4 40. fxe4 Qf6 41. Nfe3 Ra4 42. Qd3 Qh4 43. Nc4 Nxe4 44. Rxg6+ Kh8 45. Kc1 Bg7 46. Rxg7 Kxg7 47. Rb7+ Kg8 48. d6 Kh8 49. Nxe5 Qf4+ 50. Kb1 Nd2+ 51. Kb2 Qxe5+ 52. Kc1 Nb3+ 53. Qxb3 Rh4 54. d7 Rh1+ 55. Kd2 Rh7 56. Qd3 Rh6 57. Rb5 Qg7 58. Rxa5 Qxg2+ 59. Kc1 Rh1+ 60. Kb2 Qg7+ 61. Qd4 Rxd7 62. Qxg7+ Kxg7 63. Rc5 Rd3 64. Nb4 Rg3 65. Rc3 Rh2+ 66. Kb3 Rgg2 67. Nd3 Kf6 68. Rc6+ Kf5 69. Rc4 Rg3 70. Kc3 Rhh3 71. Rf4+ Ke6 72. Rd4 Rh8 73. Re4+ Kd5 74. Rd4+ Kc6 75. Rc4+ Kb5 76. Rb4+ Ka5 77. Rd4 Rhg8 78. Rd5+ Kb6 79. Rd6+ Kb5 80. Rd5+ Kc6 81. Rc5+ Kd6 82. Rc4 R8g4 83. Rxg4 Rxg4 84. Nf2 Rh4 85. Nd3 Kd5 86. Nb4+ Kc5 87. Nd3+ Kb5 88. Nf2 Kc5 89. Kd3 Kd5 90. Ke3 Ra4 91. Nd1 Ra3+ 92. Kf4 Kd4 93. Nf2 Ra4 94. Ng4 Rb4 95. Nf6 Rb1 96. Kf5 Rg1 97. Ke6 Rg5 98. Kd6 Rf5 99. Ke6 Rg5 100. Kd6 Re5 101. Ng4 Ra5 102. Ke6 Rb5 103. Nf6 Re5+ 104. Kd6 Re1 105. Nd7 Re2 106. Nf6 Re5 107. Ng4 Rh5 108. Nf6 Rg5 109. Ke6 Rb5 110. Nd7 Rb2 111. Kd6 Rb1 112. Ke6 Rb7 113. Kd6 Ra7 114. Ke6 Ra6+ 115. Kf5 Ra5+ 116. Ke6 Rd5 117. Nf6 Rg5 118. Kd6 Kd3 119. Ke6 Kc4 120. Kd6 Ra5 121. Ke6 Kd4 1-0

[Event "45th FIDE Olympiad 2024"]
[Site "Budapest"]
[Date "2024.09.19"]
[Round "8.220"]
[White "Rakotomaharavo, Dylan"]
[Black "Abdul Khaliq, Wais"]
[Result "1-0"]
[WhiteElo "2078"]
[BlackElo "1968"]
[PlyCount "151"]
[EventDate "2024.09.05"]
[EventType "team-tourn"]
[EventCountry "HUN"]
[WhiteTeam "Madagascar"]
[BlackTeam "Afghanistan"]
[WhiteTeamCountry "MAD"]
[BlackTeamCountry "AFG"]
[TimeControl "40/5400+30:1800+30"]

1. e4 c6 2. Nc3 d5 3. Nf3 dxe4 4. Nxe4 Nf6 5. Nxf6+ exf6 6. d4 Bd6 7. Bd3 O-O 8. O-O Re8 9. h3 Be6 10. c3 Nd7 11. Nh4 g6 12. Bd2 f5 13. Nf3 f4 14. Re1 h5 15. c4 Nf8 16. Bc3 Nh7 17. Bf1 Bf5 18. Qb3 Qc7 19. c5 Bf8 20. Bc4 Bg7 21. Ne5 Ng5 22. Rad1 Re7 23. Bd2 Ne6 24. Qc3 Nxd4 25. Bxf4 Rxe5 26. Rxd4 Rxe1+ 27. Qxe1 Qc8 28. Rd2 Be6 29. Bxe6 Qxe6 30. Qxe6 fxe6 31. Rd7 Rf8 32. Be3 Rf7 33. Rd8+ Kh7 34. b3 Bc3 35. Kf1 Kg7 36. Ke2 Bf6 37. Rd6 Re7 38. Kf3 Kf7 39. Ke4 Rc7 40. Bf4 g5 41. Be5 Be7 42. Rd2 Rc8 43. Rd7 Ke8 44. Rxb7 Bxc5 45. Bf6 Bxf2 46. Ke5 g4 47. hxg4 hxg4 48. Kxe6 c5 49. Be7 Rc6+ 50. Bd6 Kd8 51. Rb8+ Rc8 52. Be7+ Kc7 53. Bd6+ Kd8 54. Rxc8+ Kxc8 55. Kd5 a5 56. Bxc5 g3 57. Bd6 a4 58. b4 Kb7 59. b5 Kb6 60. Kc4 Be1 61. Bc5+ Kb7 62. Bb4 Bf2 63. Ba5 Bb6 64. Bxb6 Kxb6 65. Kb4 a3 66. Ka4 Kc5 67. Ka5 Kd4 68. b6 Ke3 69. b7 Kf2 70. b8=Q Kxg2 71. Kb4 Kh1 72. Qh8+ Kg1 73. Kxa3 g2 74. Kb4 Kf2 75. a4 g1=Q 76. Qd4+ 1-0

[Event "45th FIDE Olympiad 2024"]
[Site "Budapest"]
[Date "2024.09.19"]
[Round "8.221"]
[White "Bai, Adelard"]
[Black "Gabriel, Davidson"]
[Result "1-0"]
[WhiteElo "2378"]
[BlackElo "2043"]
[PlyCount "89"]
[EventDate "2024.09.05"]
[EventType "team-tourn"]
[EventCountry "HUN"]
[WhiteTeam "Chinese Taipei"]
[BlackTeam "Haiti"]
[BlackTeamCountry "HAI"]
[TimeControl "40/5400+30:1800+30"]

1. d4 Nf6 2. Nc3 d5 3. Bf4 a6 4. e3 e6 5. Nf3 c5 6. dxc5 Bxc5 7. Bd3 Nc6 8. O-O Nb4 9. Re1 Nxd3 10. cxd3 O-O 11. Rc1 Bd6 12. Bxd6 Qxd6 13. e4 Nd7 14. e5 Qb4 15. Qd2 Qa5 16. a3 Qd8 17. Na4 f6 18. exf6 Rxf6 19. d4 Nf8 20. Ne5 Bd7 21. Nc5 b6 22. Nexd7 Nxd7 23. Nxe6 Rxe6 24. Rxe6 Nf8 25. Rec6 Ra7 26. Rc8 Qf6 27. R1c6 Qf5 28. Re8 h6 29. Rc3 Rf7 30. Rf3 Qd7 31. Rxf7 Kxf7 32. Re5 Ng6 33. Re1 Kg8 34. Qe2 Kh7 35. Qe6 Qb5 36. Qf5 Qxb2 37. h4 Qd2 38. Re6 Qc1+ 39. Kh2 Qf4+ 40. Qxf4 Nxf4 41. Rxb6 Ne2 42. Rxa6 Nxd4 43. a4 Nb3 44. Rb6 Nc5 45. a5 1-0

[Event "45th FIDE Olympiad 2024"]
[Site "Budapest"]
[Date "2024.09.19"]
[Round "8.222"]
[White "Etienne, Angelo"]
[Black "Song, Raymond"]
[Result "0-1"]
[WhiteElo "2122"]
[BlackElo "2503"]
[PlyCount "94"]
[EventDate "2024.09.05"]
[EventType "team-tourn"]
[EventCountry "HUN"]
[WhiteTeam "Haiti"]
[BlackTeam "Chinese Taipei"]
[WhiteTeamCountry "HAI"]
[TimeControl "40/5400+30:1800+30"]

1. Nf3 d5 2. g3 g6 3. c4 dxc4 4. Qa4+ Nc6 5. Qxc4 Bg7 6. Bg2 e5 7. O-O Nge7 8. d3 O-O 9. Nc3 Be6 10. Qa4 h6 11. Bd2 Nd4 12. Qd1 c6 13. Ne1 Kh7 14. e3 Ndf5 15. Ne4 b6 16. a4 Qd7 17. a5 Nd6 18. Bb4 Nxe4 19. Bxe4 c5 20. Bd2 Rad8 21. axb6 axb6 22. Ra3 Bh3 23. Bg2 Bxg2 24. Kxg2 e4 25. Bc3 Bxc3 26. Rxc3 Nd5 27. Ra3 Nb4 28. d4 cxd4 29. Ra4 Nc6 30. exd4 Nxd4 31. Ra1 Qb7 32. Qb1 e3+ 33. f3 Nb3 34. Ra3 Nd2 35. Qa2 Nxf1 36. Ra7 Ra8 37. Rxb7 Rxa2 38. Kxf1 Rxb2 39. Re7 Kg7 40. Rxe3 Ra8 41. h4 Ra1 42. h5 gxh5 43. Re5 Rbb1 44. Kf2 Rxe1 45. Rxe1 Rxe1 46. Kxe1 h4 47. gxh4 Kg6 {0-} 0-1

[Event "45th FIDE Olympiad 2024"]
[Site "Budapest"]
[Date "2024.09.19"]
[Round "8.223"]
[White "Yang, Ching Wei Austin"]
[Black "Volcimus, Ritchy David"]
[Result "1-0"]
[WhiteElo "2121"]
[BlackElo "1948"]
[PlyCount "76"]
[EventDate "2024.09.05"]
[EventType "team-tourn"]
[EventCountry "HUN"]
[WhiteTeam "Chinese Taipei"]
[BlackTeam "Haiti"]
[BlackTeamCountry "HAI"]
[TimeControl "40/5400+30:1800+30"]

1. d4 Nf6 2. c4 e6 3. Nf3 d5 4. Nc3 Be7 5. Bf4 O-O 6. e3 a6 7. c5 Nh5 8. Be5 f6 9. Bg3 Bd7 10. Bd3 Be8 11. Qb3 Ra7 12. Bh4 g6 13. g4 Ng7 14. Bg3 b6 15. cxb6 cxb6 16. h4 Nc6 17. Rc1 f5 18. g5 Na5 19. Qd1 b5 20. Ne2 Nc4 21. b3 Qa5+ 22. Kf1 Nb2 23. Qc2 Nxd3 24. Qxd3 Qxa2 25. Rc2 Qa5 26. Kg2 b4 27. Qd2 Bb5 28. Be5 Qb6 29. Nf4 a5 30. h5 Nxh5 31. Nxh5 gxh5 32. Rxh5 Be8 33. Rh1 a4 34. bxa4 b3 35. Rc3 Rxa4 36. Qb2 Ra3 37. Rc7 Qb4 38. Qd2 Qxd2 1-0

[Event "45th FIDE Olympiad 2024"]
[Site "Budapest"]
[Date "2024.09.19"]
[Round "8.224"]
[White "Guillaume, Jude Mirvens"]
[Black "Wang, Ting-Hao"]
[Result "1/2-1/2"]
[WhiteElo "1956"]
[BlackElo "1842"]
[PlyCount "83"]
[EventDate "2024.09.05"]
[EventType "team-tourn"]
[EventCountry "HUN"]
[WhiteTeam "Haiti"]
[BlackTeam "Chinese Taipei"]
[WhiteTeamCountry "HAI"]
[TimeControl "40/5400+30:1800+30"]

1. d4 d5 2. Bf4 Nf6 3. e3 e6 4. c4 dxc4 5. Bxc4 c5 6. Nf3 Nc6 7. O-O cxd4 8. Nxd4 Nxd4 9. exd4 Bd6 10. Be5 O-O 11. Nc3 a6 12. a4 b6 13. Qf3 Ra7 14. Qg3 Rd7 15. Rad1 Bb7 16. Rfe1 Qc7 17. Bd3 Rfd8 18. Qh3 Bxe5 19. dxe5 Be4 20. exf6 Rxd3 21. Qg4 Bg6 22. fxg7 Kxg7 23. h4 h5 24. Qe2 Rxd1 25. Rxd1 Rxd1+ 26. Qxd1 Qc4 27. g3 b5 28. axb5 axb5 29. Qe2 Qxe2 30. Nxe2 Kf6 31. Nd4 Bd3 32. f3 Ke5 33. Nc6+ Kd6 34. Nb4 Bf5 35. Kf2 Kc5 36. Na2 Kc4 37. Nc1 e5 38. Ke3 f6 39. Kd2 Bd7 40. Ke3 Bf5 41. Kd2 Bd7 42. Ke3 1/2-1/2

[Event "45th FIDE Olympiad 2024"]
[Site "Budapest"]
[Date "2024.09.19"]
[Round "8.225"]
[White "Eltigani, Omar"]
[Black "Liyanage, Ranindu Dilshan"]
[Result "0-1"]
[WhiteElo "2241"]
[BlackElo "2366"]
[PlyCount "88"]
[EventDate "2024.09.05"]
[EventType "team-tourn"]
[EventCountry "HUN"]
[WhiteTeam "Sudan"]
[BlackTeam "Sri Lanka"]
[WhiteTeamCountry "SUD"]
[BlackTeamCountry "SRI"]
[TimeControl "40/5400+30:1800+30"]

1. d4 Nf6 2. Nc3 d5 3. Bf4 a6 4. e3 h6 5. Nf3 e6 6. Ne5 Nbd7 7. Be2 c5 8. O-O b5 9. Bf3 Bb7 10. Re1 b4 11. Na4 Nxe5 12. Bxe5 Nd7 13. Bg3 cxd4 14. e4 dxe4 15. Bxe4 Bxe4 16. Rxe4 Qa5 17. b3 Be7 18. Rxd4 Nf6 19. Bd6 Bxd6 20. Rxd6 O-O 21. a3 bxa3 22. Nb6 Ra7 23. Nc4 Qf5 24. Rd3 Nd5 25. Rxa3 Nf4 26. Rf3 e5 27. Ra5 Rd7 28. Qb1 Rfd8 29. Ne3 Qg6 30. Ra1 Rd2 31. h3 Ne2+ 32. Kh1 e4 33. Rf5 Nd4 34. Rf4 Ne6 35. Rg4 Qh7 36. Ra5 Rxf2 37. Qe1 Rdd2 38. Nc4 Rde2 39. Qb4 f5 40. Rg3 f4 41. Qb8+ Nf8 42. Rg4 f3 43. Ra1 fxg2+ 44. Kh2 Rf1 {0-} 0-1

[Event "45th FIDE Olympiad 2024"]
[Site "Budapest"]
[Date "2024.09.19"]
[Round "8.226"]
[White "Amarathunga, Kosala Sandeepa Cham"]
[Black "Ahmed, Hassan"]
[Result "1/2-1/2"]
[WhiteElo "1956"]
[BlackElo "2234"]
[PlyCount "81"]
[EventDate "2024.09.05"]
[EventType "team-tourn"]
[EventCountry "HUN"]
[WhiteTeam "Sri Lanka"]
[BlackTeam "Sudan"]
[WhiteTeamCountry "SRI"]
[BlackTeamCountry "SUD"]
[TimeControl "40/5400+30:1800+30"]

1. Nf3 c5 2. b3 Nf6 3. Bb2 g6 4. e3 Bg7 5. Be2 O-O 6. O-O d5 7. d4 cxd4 8. Nxd4 Nc6 9. Nxc6 bxc6 10. Nd2 Qd6 11. Qc1 Ng4 12. Bxg4 Bxg4 13. h3 Be2 14. Bxg7 Kxg7 15. Re1 Ba6 16. Qb2+ e5 17. Rad1 Qe7 18. Rc1 f6 19. c4 Rad8 20. Rc3 Rd7 21. cxd5 cxd5 22. Nf3 Rfd8 23. Rc2 Bb7 24. Nh2 h5 25. Rd2 Rc7 26. Red1 Rdc8 27. Nf1 Qb4 28. Ng3 a5 29. Ne2 h4 30. f4 Qe4 31. fxe5 Qxe3+ 32. Kh1 fxe5 33. Kh2 d4 34. Nxd4 exd4 35. Rxd4 Qe5+ 36. Kh1 Re7 37. Qd2 Qg3 38. Rd3 Qe5 39. Rd4 Qg3 40. Rd3 Qe5 41. Rd4 1/2-1/2

[Event "45th FIDE Olympiad 2024"]
[Site "Budapest"]
[Date "2024.09.19"]
[Round "8.227"]
[White "Hamid, Mohammed"]
[Black "Kodithuwakku, K K Dinujaya"]
[Result "0-1"]
[WhiteElo "2090"]
[BlackElo "1827"]
[PlyCount "62"]
[EventDate "2024.09.05"]
[EventType "team-tourn"]
[EventCountry "HUN"]
[WhiteTeam "Sudan"]
[BlackTeam "Sri Lanka"]
[WhiteTeamCountry "SUD"]
[BlackTeamCountry "SRI"]
[TimeControl "40/5400+30:1800+30"]

1. c4 Nf6 2. Nc3 e6 3. Nf3 d5 4. d4 Nbd7 5. Bg5 Bb4 6. e3 c5 7. cxd5 exd5 8. Bd3 Qa5 9. O-O c4 10. Bc2 Bxc3 11. bxc3 Qxc3 12. a4 O-O 13. Rb1 Re8 14. Bf4 Nf8 15. Rb5 Qa3 16. Be5 N8d7 17. Qb1 Qe7 18. a5 Qd8 19. Qa2 b6 20. axb6 Nxb6 21. Rfb1 Bg4 22. Ra5 Ne4 23. Bxe4 dxe4 24. Nd2 c3 25. Nxe4 Be6 26. Qa1 Bf5 27. Nd6 Bxb1 28. Nxe8 c2 29. Rc5 Nd7 30. Rxc2 Bxc2 31. Nc7 Rb8 {0-} 0-1

[Event "45th FIDE Olympiad 2024"]
[Site "Budapest"]
[Date "2024.09.19"]
[Round "8.228"]
[White "Bandara, Dhanushka"]
[Black "Eltag, Siddig"]
[Result "0-1"]
[WhiteElo "1903"]
[BlackElo "2138"]
[PlyCount "94"]
[EventDate "2024.09.05"]
[EventType "team-tourn"]
[EventCountry "HUN"]
[WhiteTeam "Sri Lanka"]
[BlackTeam "Sudan"]
[WhiteTeamCountry "SRI"]
[BlackTeamCountry "SUD"]
[TimeControl "40/5400+30:1800+30"]

1. e4 d5 2. exd5 Nf6 3. d4 Nxd5 4. Nf3 g6 5. h3 Bg7 6. Bd3 O-O 7. O-O Nc6 8. c3 h6 9. Re1 Kh7 10. Na3 a6 11. Nc4 Bf5 12. Nce5 Nxe5 13. Nxe5 Bxd3 14. Qxd3 Qd6 15. Qg3 Rad8 16. Qh4 Qf6 17. Qg3 Qd6 18. Re4 f5 19. Rh4 Qf6 20. c4 f4 21. Qd3 Nb4 22. Qe4 Qxh4 23. Nxg6 Rxd4 24. Qxd4 Bxd4 25. Nxh4 Nd3 26. Nf3 Bxf2+ 27. Kf1 Bc5 28. Ke2 Rd8 29. Bd2 e5 30. Bc3 e4 31. Nd2 f3+ 32. gxf3 Nf4+ 33. Ke1 e3 34. Nf1 e2 35. Ng3 Rg8 36. Nxe2 Re8 37. Kd1 Rxe2 38. Bd2 Rh2 39. Rc1 Rh1+ 40. Kc2 Rxc1+ 41. Bxc1 Nxh3 42. Kd3 Kg6 43. Ke4 Ng5+ 44. Kf4 Bd6+ 45. Ke3 Kf5 46. Kf2 Bf4 47. Bxf4 Kxf4 {0-} 0-1

[Event "45th FIDE Olympiad 2024"]
[Site "Budapest"]
[Date "2024.09.19"]
[Round "8.229"]
[White "Loay, Sameer"]
[Black "Kanegeni, Matthew Kamau"]
[Result "1-0"]
[WhiteElo "2194"]
[BlackElo "1976"]
[PlyCount "71"]
[EventDate "2024.09.05"]
[EventType "team-tourn"]
[EventCountry "HUN"]
[WhiteTeam "Jordan"]
[BlackTeam "Kenya"]
[WhiteTeamCountry "JOR"]
[BlackTeamCountry "KEN"]
[TimeControl "40/5400+30:1800+30"]

1. Nf3 d5 2. g3 c6 3. Bg2 Nf6 4. O-O Bg4 5. d3 Nbd7 6. Nbd2 e5 7. h3 Bh5 8. e4 Bd6 9. Re1 d4 10. c3 Bxf3 11. Bxf3 dxc3 12. bxc3 O-O 13. Nc4 Nb6 14. Nxd6 Qxd6 15. d4 Rfd8 16. Qb3 Nfd7 17. Be3 exd4 18. cxd4 Nf8 19. Bg2 Ne6 20. Rad1 Rd7 21. f4 g6 22. f5 gxf5 23. exf5 Nc7 24. Bf4 Qf6 25. Qf3 Ncd5 26. Be5 Qh6 27. f6 Kh8 28. Re4 Rg8 29. Rh4 Qe3+ 30. Kh2 Qxf3 31. Bxf3 Nc3 32. Rd3 Nbd5 33. Bg4 Rxg4 34. Rxg4 Nxa2 35. Ra3 Ndb4 36. Rxa7 1-0

[Event "45th FIDE Olympiad 2024"]
[Site "Budapest"]
[Date "2024.09.19"]
[Round "8.230"]
[White "Oluka, Robert Mcligeyo"]
[Black "Saif, Malek"]
[Result "0-1"]
[WhiteElo "1990"]
[BlackElo "2162"]
[PlyCount "130"]
[EventDate "2024.09.05"]
[EventType "team-tourn"]
[EventCountry "HUN"]
[WhiteTeam "Kenya"]
[BlackTeam "Jordan"]
[WhiteTeamCountry "KEN"]
[BlackTeamCountry "JOR"]
[TimeControl "40/5400+30:1800+30"]

1. e4 e5 2. Nc3 Nf6 3. Bc4 Nc6 4. d3 Bc5 5. f4 d6 6. Nf3 Qe7 7. Na4 Bb6 8. Nxb6 axb6 9. O-O Bd7 10. Bd2 h6 11. fxe5 dxe5 12. Kh1 Be6 13. Bb5 Nd7 14. Qe1 Qc5 15. a4 Qd6 16. Bc3 f6 17. Bxc6 bxc6 18. d4 exd4 19. Nxd4 Ne5 20. Rd1 Bg4 21. Nf3 Qe6 22. Nxe5 Bxd1 23. Qxd1 fxe5 24. Rf5 Qd6 25. Qg4 O-O-O 26. Rf1+ Rd7 27. Qe2 Kb7 28. a5 c5 29. axb6 cxb6 30. h3 Qc6 31. Ra1 Ra8 32. Rxa8 Kxa8 33. Qa6+ Ra7 34. Qc4 Re7 35. Qa6+ Kb8 36. Kh2 Kc7 37. Qd3 Qd6 38. Qa6 Qc6 39. Qd3 c4 40. Qf3 Qf6 41. Qe2 Qe6 42. Qe3 g5 43. Be1 Kb7 44. Bg3 Qc6 45. Qf3 Rd7 46. Bxe5 Re7 47. Bg3 Rxe4 48. Qf7+ Ka6 49. Qf3 Qe6 50. b3 cxb3 51. cxb3 Kb5 52. Qd3+ Kc6 53. Qa6 h5 54. Bf2 Rb4 55. Qa8+ Kb5 56. Qd8 Re4 57. Qd3+ Ka5 58. Qd8 g4 59. h4 Qe5+ 60. Kg1 Rb4 61. Qd2 Qe6 62. Be1 Qxb3 63. Qg5+ Ka4 64. Bxb4 Kxb4 65. Qxh5 Qd1+ {0-} 0-1

[Event "45th FIDE Olympiad 2024"]
[Site "Budapest"]
[Date "2024.09.19"]
[Round "8.231"]
[White "Anas, Khwaira"]
[Black "Wanasunia, Elvis Likoko"]
[Result "1-0"]
[WhiteElo "1994"]
[BlackElo "1942"]
[PlyCount "93"]
[EventDate "2024.09.05"]
[EventType "team-tourn"]
[EventCountry "HUN"]
[WhiteTeam "Jordan"]
[BlackTeam "Kenya"]
[WhiteTeamCountry "JOR"]
[BlackTeamCountry "KEN"]
[TimeControl "40/5400+30:1800+30"]

1. d4 c5 2. d5 d6 3. c4 b5 4. cxb5 a6 5. e4 Nf6 6. Nc3 g6 7. a4 Bg7 8. Nf3 O-O 9. Bd2 Nbd7 10. Bd3 axb5 11. axb5 Rb8 12. O-O Ng4 13. h3 Nge5 14. Nxe5 Nxe5 15. Be2 Qc7 16. Qc2 Nd7 17. Ra3 e5 18. Rb1 f5 19. f3 f4 20. Be1 g5 21. Bf2 h5 22. b4 cxb4 23. Rxb4 g4 24. fxg4 hxg4 25. Bxg4 Nf6 26. Bf3 Qf7 27. b6 Qg6 28. Kf1 Bb7 29. Rc4 Rfc8 30. Rxc8+ Rxc8 31. Qb2 Rxc3 32. Qxc3 Nxe4 33. Qd3 Ba6 34. Qxa6 Nd2+ 35. Ke2 Qb1 36. Kxd2 Qb2+ 37. Ke1 e4 38. Bxe4 Qc1+ 39. Ke2 f3+ 40. gxf3 Qb2+ 41. Kf1 Qc1+ 42. Be1 Bd4 43. Qa8+ Kg7 44. Ra7+ Kh6 45. Qf8+ Kg5 46. Qf5+ Kh6 47. Rh7# 1-0

[Event "45th FIDE Olympiad 2024"]
[Site "Budapest"]
[Date "2024.09.19"]
[Round "8.232"]
[White "Mutuge, Ian"]
[Black "Rakan, Dasa"]
[Result "0-1"]
[WhiteElo "1938"]
[BlackElo "1976"]
[PlyCount "54"]
[EventDate "2024.09.05"]
[EventType "team-tourn"]
[EventCountry "HUN"]
[WhiteTeam "Kenya"]
[BlackTeam "Jordan"]
[WhiteTeamCountry "KEN"]
[BlackTeamCountry "JOR"]
[TimeControl "40/5400+30:1800+30"]

1. e4 c6 2. Nc3 d5 3. Nf3 dxe4 4. Nxe4 Nf6 5. Qe2 Nxe4 6. Qxe4 Nd7 7. Bc4 Nf6 8. Qe2 g6 9. O-O Nd5 10. Qe5 Rg8 11. d3 Bg4 12. Nd2 Qc7 13. Qe1 O-O-O 14. Ne4 Bg7 15. h3 Bf5 16. Be3 Nxe3 17. Qxe3 Bxb2 18. Rab1 Bd4 19. Qe2 e6 20. c3 Bb6 21. d4 e5 22. a4 exd4 23. a5 Bxa5 24. Rxb7 Kxb7 25. Ba6+ Ka8 26. Nc5 Rb8 27. cxd4 Bb6 {0-} 0-1

[Event "45th FIDE Olympiad 2024"]
[Site "Budapest"]
[Date "2024.09.19"]
[Round "8.233"]
[White "Christie, Joshua"]
[Black "Ndahangwapo, Heskiel"]
[Result "1-0"]
[WhiteElo "2271"]
[BlackElo "2011"]
[PlyCount "121"]
[EventDate "2024.09.05"]
[EventType "team-tourn"]
[EventCountry "HUN"]
[WhiteTeam "Jamaica"]
[BlackTeam "Namibia"]
[WhiteTeamCountry "JAM"]
[BlackTeamCountry "NAM"]
[TimeControl "40/5400+30:1800+30"]

1. d4 Nf6 2. c4 e6 3. g3 d5 4. Bg2 Be7 5. Nf3 O-O 6. Qc2 dxc4 7. O-O a6 8. a4 Nc6 9. Qxc4 Qd5 10. Qxd5 exd5 11. Bf4 Na5 12. Nbd2 c6 13. Bc7 Bb4 14. Bxa5 Bxa5 15. Nb3 Bb4 16. a5 Re8 17. e3 Bd6 18. Rfc1 Ne4 19. Ne1 Bf5 20. Bf1 Re7 21. Nd3 h5 22. Ndc5 h4 23. Nxe4 Bxe4 24. Nc5 Bf3 25. Ra4 hxg3 26. hxg3 g5 27. Rb4 Kg7 28. Bg2 g4 29. Rc3 Rh8 30. Rcb3 Bxc5 31. dxc5 Rh5 32. Bxf3 gxf3 33. Rg4+ Kf8 34. Rbb4 d4 35. Rgxd4 Rxc5 36. Rd8+ Kg7 37. Rg4+ Kf6 38. Rf4+ Rf5 39. Rdd4 Ree5 40. b4 Rb5 41. g4 Rxf4 42. Rxf4+ Kg5 43. Kh2 Kh4 44. Rxf3 Rxb4 45. Rxf7 Kxg4 46. f3+ Kg5 47. e4 Rb5 48. Kg3 Kg6 49. Rc7 Rxa5 50. Rxb7 Rc5 51. f4 a5 52. f5+ Kf6 53. Kf4 a4 54. Ra7 Rc4 55. Ra6 Ke7 56. Ke5 c5 57. f6+ Ke8 58. Ra8+ Kf7 59. Kf5 Rd4 60. e5 Rd5 61. Rxa4 1-0

[Event "45th FIDE Olympiad 2024"]
[Site "Budapest"]
[Date "2024.09.19"]
[Round "8.234"]
[White "Eichab, Charles"]
[Black "Glaves, Raheem"]
[Result "1-0"]
[WhiteElo "2013"]
[BlackElo "2094"]
[PlyCount "93"]
[EventDate "2024.09.05"]
[EventType "team-tourn"]
[EventCountry "HUN"]
[WhiteTeam "Namibia"]
[BlackTeam "Jamaica"]
[WhiteTeamCountry "NAM"]
[BlackTeamCountry "JAM"]
[TimeControl "40/5400+30:1800+30"]

1. c4 e5 2. Nc3 Nf6 3. Nf3 Nc6 4. g3 d5 5. cxd5 Nxd5 6. Bg2 Nb6 7. O-O Be7 8. d3 O-O 9. Be3 Be6 10. Na4 Nd5 11. Bc5 Qd7 12. Bxe7 Qxe7 13. Rc1 Rad8 14. Rxc6 bxc6 15. Nxe5 Qf6 16. Nxc6 Rde8 17. d4 Nb6 18. Nc3 Bh3 19. Bxh3 Qxc6 20. e3 Re7 21. Qe2 Rd8 22. Bg2 Qg6 23. Rd1 a5 24. e4 Qe6 25. Qb5 Qf6 26. d5 a4 27. f4 g5 28. e5 Qf5 29. d6 Red7 30. Bc6 gxf4 31. Bxd7 Rxd7 32. Rf1 Qc2 33. gxf4 f6 34. Kh1 Kf7 35. Qc6 Qd3 36. Re1 fxe5 37. fxe5 Kg7 38. Qg2+ Qg6 39. Qf2 Rf7 40. Qd4 Qe6 41. Rg1+ Kf8 42. Qh4 Ke8 43. Rg8+ Kd7 44. Rd8+ Kc6 45. Qe4+ Kc5 46. dxc7 Rf1+ 47. Kg2 1-0

[Event "45th FIDE Olympiad 2024"]
[Site "Budapest"]
[Date "2024.09.19"]
[Round "8.235"]
[White "Shaw, Jaden"]
[Black "Schwarz, Bernhard"]
[Result "1-0"]
[WhiteElo "2051"]
[BlackElo "1875"]
[PlyCount "75"]
[EventDate "2024.09.05"]
[EventType "team-tourn"]
[EventCountry "HUN"]
[WhiteTeam "Jamaica"]
[BlackTeam "Namibia"]
[WhiteTeamCountry "JAM"]
[BlackTeamCountry "NAM"]
[TimeControl "40/5400+30:1800+30"]

1. e4 e5 2. Nf3 Nc6 3. Bb5 a6 4. Ba4 Nf6 5. d3 b5 6. Bb3 h6 7. O-O d6 8. a4 Bg4 9. c3 Rb8 10. Re1 g6 11. h3 Bd7 12. Nbd2 g5 13. Nf1 g4 14. hxg4 Bxg4 15. Ne3 Bh5 16. Nf5 Rg8 17. axb5 axb5 18. d4 Qc8 19. Qd3 Rg4 20. Nh2 Rg8 21. Nf1 Ne7 22. N1g3 Bg4 23. Ra5 Qb7 24. dxe5 dxe5 25. c4 Rd8 26. Qc2 Bxf5 27. Rxb5 Qa8 28. exf5 h5 29. Ba4 c6 30. Rbxe5 h4 31. Nf1 Ng4 32. f6 Nxf6 33. Bg5 Rd6 34. c5 Re6 35. Rxe6 fxe6 36. Bxf6 h3 37. Ng3 Qb8 38. Bxe7 1-0

[Event "45th FIDE Olympiad 2024"]
[Site "Budapest"]
[Date "2024.09.19"]
[Round "8.236"]
[White "Nitzborn, Max Baron"]
[Black "McKennis, Darren"]
[Result "0-1"]
[WhiteElo "1800"]
[BlackElo "1905"]
[PlyCount "60"]
[EventDate "2024.09.05"]
[EventType "team-tourn"]
[EventCountry "HUN"]
[WhiteTeam "Namibia"]
[BlackTeam "Jamaica"]
[WhiteTeamCountry "NAM"]
[BlackTeamCountry "JAM"]
[TimeControl "40/5400+30:1800+30"]

1. d4 d5 2. Nf3 Nf6 3. g3 c5 4. c4 cxd4 5. Bg2 Nc6 6. Nxd4 e5 7. Nxc6 bxc6 8. O-O Be6 9. Bg5 Qd7 10. Qa4 Rc8 11. Rd1 d4 12. Nc3 Be7 13. Rac1 O-O 14. Bxf6 Bxf6 15. Ne4 Be7 16. c5 f5 17. Nd6 Bxd6 18. cxd6 Qxd6 19. Bxc6 Rc7 20. Bg2 Rfc8 21. Rxc7 Qxc7 22. b3 h6 23. Qa6 Qb6 24. Qa4 a5 25. Bh3 Kh7 26. Qa3 Qc7 27. f3 Qc2 28. Re1 Qd2 29. Kf1 d3 30. Qe7 dxe2+ {0-} 0-1

[Event "45th FIDE Olympiad 2024"]
[Site "Budapest"]
[Date "2024.09.19"]
[Round "8.237"]
[White "Giasi, Viresh"]
[Black "Espinoza Solano, Jose Nahum"]
[Result "1/2-1/2"]
[WhiteElo "1998"]
[BlackElo "2156"]
[PlyCount "144"]
[EventDate "2024.09.05"]
[EventType "team-tourn"]
[EventCountry "HUN"]
[WhiteTeam "Suriname"]
[BlackTeam "Nicaragua"]
[BlackTeamCountry "NCA"]
[TimeControl "40/5400+30:1800+30"]

1. e4 e5 2. Nf3 Nc6 3. Bb5 a6 4. Ba4 d6 5. h3 Bd7 6. c3 g6 7. d3 Bg7 8. Bg5 Nge7 9. Bxc6 Bxc6 10. c4 h6 11. Bxe7 Qxe7 12. Nc3 O-O 13. Qe2 Bd7 14. g4 c6 15. Nd2 b5 16. h4 Rab8 17. b3 Be6 18. h5 f5 19. gxf5 gxf5 20. a3 fxe4 21. dxe4 bxc4 22. bxc4 Qf7 23. Rg1 Qa7 24. Rg3 Qd4 25. Rc1 Rf4 26. Nd1 Rh4 27. Qe3 Qxe3+ 28. Nxe3 Rxh5 29. Ke2 Kf7 30. c5 d5 31. exd5 cxd5 32. c6 e4 33. Rg2 Rg5 34. Rxg5 hxg5 35. f3 exf3+ 36. Nxf3 Bf6 37. c7 Rc8 38. Kd3 Ke7 39. Nd4 Bxd4 40. Kxd4 Kd6 41. Rg1 g4 42. Rh1 Kxc7 43. Nxd5+ Bxd5 44. Kxd5 Rg8 45. Rg1 g3 46. Rg2 Kb6 47. Kc4 Ka5 48. Kb3 Rg4 49. Kc2 Kb5 50. Kb3 Kc5 51. Kc3 Kd5 52. Kd3 Ra4 53. Ra2 Rg4 54. Rg2 Rg6 55. a4 Rg4 56. Rg1 g2 57. a5 Kc5 58. Ke3 Kb5 59. Kf2 Kxa5 60. Ra1+ Kb4 61. Kg1 a5 62. Rb1+ Kc3 63. Re1 a4 64. Re3+ Kb4 65. Re8 Rg3 66. Re4+ Kb3 67. Re8 a3 68. Rb8+ Kc2 69. Ra8 Kb2 70. Rb8+ Rb3 71. Re8 a2 72. Kxg2 a1=Q 1/2-1/2